bitfinex/quotes_SOLUSD_20250217
["timestamp","ask_amount","ask_price","bid_price","bid_amount"]
[1739798236658,25.382,185.81,185.77,13.41184853]
[1739798238060,25.382,185.81,185.77,23.44131845]
[1739798239164,25.382,185.81,185.77,13.41184853]
[1739798240052,20.0,185.81,185.77,23.44131845]
[1739798241472,20.0,185.81,185.79,13.41184853]
[1739798242070,20.0,185.81,185.78,13.41184853]
[1739798242637,0.063,185.83,185.81,13.41184853]
[1739798242941,0.063,185.83,185.81,23.44131845]
[1739798243135,0.063,185.83,185.78,86.8826]
[1739798243136,0.063,185.83,185.82,23.44131845]
[1739798243652,0.063,185.83,185.82,104.94131845]
[1739798244467,0.063,185.86,185.83,13.41184853]
[1739798244769,0.063,185.86,185.85,68.93979813]
[1739798244939,0.063,185.86,185.85,28.82191845]
[1739798245137,0.063,185.86,185.85,185.11818139]
[1739798245545,0.063,185.86,185.85,179.73758139]
[1739798246372,0.063,185.86,185.85,169.70811147]
[1739798246743,0.063,185.87,185.85,185.36611611]
[1739798246948,0.063,185.87,185.86,14.21861674]
[1739798247458,0.063,185.87,185.86,29.87662138]
[1739798247758,0.063,185.87,185.86,186.17288432]
[1739798247939,0.063,185.87,185.86,185.36611611]
[1739798248761,0.063,185.87,185.86,94.91184853]
[1739798249149,15.72100464,185.87,185.86,13.41184853]
[1739798250052,20.063,185.87,185.86,13.41184853]
[1739798250264,0.063,185.87,185.86,13.41184853]
[1739798250735,0.063,185.87,185.86,29.06985317]
[1739798251661,0.063,185.87,185.86,190.74641611]
[1739798253350,0.063,185.87,185.86,185.36611611]
[1739798253677,0.063,185.87,185.86,13.41184853]
[1739798253857,15.72100464,185.87,185.86,13.41184853]
[1739798254461,15.72100464,185.87,185.79,74.79626294]
[1739798254462,15.72100464,185.87,185.79,90.45426758]
[1739798254664,15.65800464,185.84,185.78,15.65800464]
[1739798254978,5.3812,185.83,185.78,15.65800464]
[1739798255157,15.65800464,185.84,185.79,13.41184853]
[1739798255355,5.3809,185.84,185.79,29.06985317]
[1739798256367,41.10120464,185.87,185.82,13.41184853]
[1739798256570,0.063,185.87,185.82,13.41184853]
[1739798256878,15.65800464,185.85,185.79,15.65800464]
[1739798257052,5.3809,185.84,185.79,15.65800464]
[1739798257661,21.03830464,185.86,185.8,29.06985317]
[1739798258044,5.3803,185.86,185.82,13.41184853]
[1739798258953,0.063,185.87,185.83,13.41184853]
[1739798261472,0.063,185.87,185.82,13.41184853]
[1739798261977,0.063,185.87,185.84,13.41184853]
[1739798262293,0.063,185.87,185.84,29.06985317]
[1739798262975,0.063,185.87,185.86,29.06985317]
[1739798263275,0.063,185.88,185.86,34.45015317]
[1739798263454,0.063,185.88,185.87,29.06985317]
[1739798263856,0.063,185.88,185.87,29.87660135]
[1739798264650,0.063,185.91,185.88,13.41184853]
[1739798264850,0.063,185.91,185.9,29.06985317]
[1739798265478,0.063,185.91,185.9,13.41184853]
[1739798268303,0.063,185.91,185.9,29.06985317]
[1739798270274,0.063,185.95,185.91,13.41184853]
[1739798270474,0.063,185.95,185.93,13.41184853]
[1739798270683,0.063,185.95,185.91,15.65800464]
[1739798271072,0.063,185.95,185.92,13.41184853]
[1739798273056,0.063,185.95,185.93,13.41184853]
[1739798273559,0.063,185.95,185.92,13.41184853]
[1739798274094,0.063,185.95,185.9,81.5]
[1739798274497,15.72100464,185.95,185.91,13.41184853]
[1739798274683,15.65800464,185.93,185.91,13.41184853]
[1739798275001,15.65800464,185.92,185.86,81.53]
[1739798275292,15.65800464,185.91,185.87,13.41184853]
[1739798276167,15.65800464,185.88,185.86,0.03]
[1739798276473,15.65800464,185.87,185.86,0.03]
[1739798278305,21.03810464,185.87,185.86,0.03]
[1739798279606,34.48830464,185.87,185.77,29.06985317]
[1739798279791,15.65800464,185.83,185.77,29.06985317]
[1739798280511,21.03940464,185.83,185.77,29.06985317]
[1739798280898,15.65800464,185.82,185.77,13.41184853]
[1739798281427,15.65800464,185.81,185.77,13.41184853]
[1739798281611,15.65800464,185.82,185.77,13.41184853]
[1739798281979,5.3814,185.83,185.79,13.41184853]
[1739798282409,21.03940464,185.83,185.76,97.15800464]
[1739798282580,21.03940464,185.83,185.77,13.41184853]
[1739798283505,5.3814,185.83,185.77,29.06985317]
[1739798283689,41.03870464,185.85,185.8,13.41184853]
[1739798283897,25.3807,185.85,185.8,13.41184853]
[1739798284202,25.3807,185.85,185.79,13.41184853]
[1739798284203,15.65800464,185.84,185.79,13.41184853]
[1739798284381,15.65800464,185.83,185.79,13.41184853]
[1739798284581,15.65800464,185.83,185.77,15.65800464]
[1739798284993,15.65800464,185.82,185.78,13.41184853]
[1739798285394,15.65800464,185.83,185.77,29.06985317]
[1739798285598,15.65800464,185.84,185.77,34.45275317]
[1739798286007,21.03900464,185.84,185.77,34.45275317]
[1739798286379,21.03900464,185.84,185.77,29.06985317]
[1739798286584,21.03900464,185.84,185.77,110.56985317]
[1739798286804,15.65800464,185.83,185.77,110.56985317]
[1739798287386,21.03940464,185.83,185.77,110.56985317]
[1739798287580,5.3814,185.83,185.77,110.56985317]
[1739798288003,21.03940464,185.83,185.77,110.56985317]
[1739798288885,21.03940464,185.83,185.77,109.56985317]
[1739798289806,15.65800464,185.8,185.77,93.91184853]
[1739798290777,15.65800464,185.8,185.77,12.41184853]
[1739798290984,1.5803,185.82,185.74,94.91603973]
[1739798290985,15.65800464,185.79,185.74,94.91603973]
[1739798291883,21.04070464,185.78,185.75,13.41184853]
[1739798292084,41.04070464,185.78,185.75,13.41184853]
[1739798292784,15.65800464,185.77,185.72,81.53]
[1739798293310,15.65800464,185.77,185.73,13.41184853]
[1739798293606,15.65800464,185.76,185.73,13.41184853]
[1739798293984,5.3835,185.75,185.73,13.41184853]
[1739798294795,21.04150464,185.75,185.73,13.41184853]
[1739798295492,5.3835,185.75,185.73,13.41184853]
[1739798296426,21.04150464,185.75,185.73,13.41184853]
[1739798296601,15.65800464,185.74,185.72,0.03]
[1739798298111,21.04150464,185.75,185.72,0.03]
[1739798298303,15.65800464,185.76,185.72,0.03]
[1739798298505,21.04120464,185.76,185.72,0.03]
[1739798300722,1.5803,185.82,185.75,15.65800464]
[1739798300909,15.65800464,185.84,185.79,13.41184853]
[1739798301208,5.3809,185.84,185.79,13.41184853]
[1739798301788,21.03890464,185.84,185.79,13.41184853]
[1739798302017,20.0,185.84,185.79,13.41184853]
[1739798302314,21.03890464,185.85,185.79,13.41184853]
[1739798303109,20.0,185.82,185.77,29.06985317]
[1739798303414,15.65800464,185.8,185.77,13.41184853]
[1739798303602,15.65800464,185.79,185.73,97.15800464]
[1739798303931,15.65800464,185.79,185.74,13.41184853]
[1739798304121,15.65800464,185.76,185.74,13.41184853]
[1739798304287,15.65800464,185.75,185.72,0.03]
[1739798305094,15.65800464,185.76,185.72,0.03]
[1739798306092,35.65800464,185.75,185.72,0.03]
[1739798306417,20.0,185.75,185.72,0.03]
[1739798307192,15.65800464,185.75,185.72,0.03]
[1739798307393,21.04160464,185.75,185.72,0.03]
[1739798307621,5.3833,185.76,185.72,0.03]
[1739798310393,20.063,185.77,185.73,13.41184853]
[1739798310613,0.063,185.77,185.73,13.41184853]
[1739798310888,0.063,185.77,185.73,29.06985317]
[1739798311092,0.063,185.77,185.75,13.41184853]
[1739798311511,0.063,185.77,185.73,29.06985317]
[1739798311706,0.063,185.77,185.73,13.41184853]
[1739798312419,5.446,185.77,185.73,13.41184853]
[1739798313094,0.063,185.77,185.73,13.41184853]
[1739798314596,15.72100464,185.77,185.73,13.41184853]
[1739798315003,15.65800464,185.76,185.73,13.41184853]
[1739798315614,35.65800464,185.75,185.72,0.03]
[1739798316117,20.0,185.74,185.73,0.03]
[1739798316529,25.3838,185.74,185.73,0.03]
[1739798317017,41.04180464,185.74,185.73,0.03]
[1739798319423,25.3838,185.74,185.73,0.03]
[1739798319725,41.04180464,185.74,185.73,0.03]
[1739798323721,25.3838,185.74,185.73,0.03]
[1739798324119,41.04180464,185.74,185.73,0.03]
[1739798332738,35.42158035,185.74,185.73,0.03]
[1739798339635,25.3838,185.74,185.73,0.03]
[1739798340252,5.3838,185.74,185.73,0.03]
[1739798340739,92.33778035,185.76,185.73,0.03]
[1739798340931,20.0,185.74,185.73,0.03]
[1739798341940,10.03778035,185.76,185.73,0.03]
[1739798341941,5.3833,185.76,185.73,0.03]
[1739798344019,10.03778035,185.75,185.73,0.03]
[1739798344434,30.03778035,185.74,185.73,0.03]
[1739798345425,15.42108035,185.76,185.73,0.03]
[1739798346749,10.03778035,185.75,185.73,0.03]
[1739798348142,15.42148035,185.75,185.73,0.03]
[1739798348346,10.03778035,185.74,185.73,0.03]
[1739798348939,5.3837,185.75,185.73,0.03]
[1739798349238,15.42148035,185.75,185.73,0.03]
[1739798349435,10.03778035,185.74,185.73,0.03]
[1739798350020,15.42148035,185.75,185.73,0.03]
[1739798351462,5.3833,185.76,185.73,0.03]
[1739798351930,5.446,185.77,185.73,0.03]
[1739798352638,0.063,185.77,185.73,0.03]
[1739798353037,0.063,185.77,185.73,13.44184853]
[1739798354072,0.063,185.77,185.73,23.47962888]
[1739798354377,0.063,185.77,185.76,13.41184853]
[1739798356158,0.063,185.77,185.76,28.83282888]
[1739798356374,20.0,185.81,185.78,13.41184853]
[1739798356863,20.0,185.81,185.8,13.41184853]
[1739798357252,5.4436,185.86,185.8,23.44962888]
[1739798357469,5.4436,185.86,185.81,23.44962888]
[1739798358044,0.063,185.86,185.83,13.41184853]
[1739798358663,0.063,185.86,185.82,13.41184853]
[1739798358947,0.063,185.86,185.85,10.03778035]
[1739798360542,0.063,185.86,185.85,15.65403404]
[1739798360767,0.063,185.86,185.85,29.06588257]
[1739798362863,0.063,185.86,185.85,13.41184853]
[1739798364065,15.71703404,185.86,185.85,13.41184853]
[1739798365163,21.09733404,185.86,185.85,13.41184853]
[1739798366776,20.0,185.83,185.78,0.03]
[1739798366965,15.65403404,185.81,185.78,0.03]
[1739798367272,15.65403404,185.8,185.78,0.03]
[1739798367468,15.65403404,185.85,185.78,0.03]
[1739798367469,15.65403404,185.81,185.78,0.03]
[1739798367654,35.65403404,185.82,185.78,0.03]
[1739798368271,15.65403404,185.81,185.78,0.03]
[1739798368675,21.03553404,185.82,185.78,0.03]
[1739798368882,5.3815,185.82,185.78,0.03]
[1739798369683,21.03553404,185.82,185.78,0.03]
[1739798370152,35.65403404,185.81,185.78,0.03]
[1739798370355,15.65403404,185.8,185.78,0.03]
[1739798370963,5.3824,185.79,185.78,0.03]
[1739798371559,5.3821,185.8,185.78,0.03]
[1739798374955,20.0,185.81,185.78,0.03]
[1739798375155,5.3816,185.82,185.78,0.03]
[1739798376655,35.65403404,185.81,185.78,0.03]
[1739798376855,15.65403404,185.79,185.78,0.03]
[1739798377075,21.03643404,185.79,185.78,0.03]
[1739798377267,5.3824,185.79,185.78,0.03]
[1739798378380,5.3821,185.8,185.78,0.03]
[1739798379271,5.4447,185.82,185.78,0.03]
[1739798379659,15.65403404,185.81,185.78,0.03]
[1739798380679,5.3821,185.8,185.78,0.03]
[1739798381186,0.063,185.82,185.78,0.03]
[1739798381187,5.4445,185.82,185.78,0.03]
[1739798382279,5.4445,185.82,185.79,13.41184853]
[1739798382463,25.4445,185.82,185.79,13.41184853]
[1739798382658,0.063,185.82,185.79,10.0299584]
[1739798384190,0.063,185.82,185.78,23.47180693]
[1739798384367,0.063,185.82,185.78,0.03]
[1739798384776,0.063,185.82,185.78,10.0599584]
[1739798385305,0.063,185.82,185.79,10.0299584]
[1739798385463,0.063,185.82,185.78,0.03]
[1739798386183,5.4445,185.82,185.78,0.03]
[1739798387605,5.4445,185.82,185.79,13.41184853]
[1739798387772,0.063,185.82,185.79,13.41184853]
[1739798389193,0.063,185.82,185.81,10.0299584]
[1739798389668,0.063,185.82,185.8,23.44180693]
[1739798390065,0.063,185.82,185.8,13.41184853]
[1739798390276,0.063,185.82,185.8,23.44180693]
[1739798390902,0.063,185.82,185.81,10.0299584]
[1739798391100,0.063,185.82,185.81,28.82360693]
[1739798392168,0.063,185.86,185.82,13.41184853]
[1739798392382,0.063,185.86,185.85,23.44180693]
[1739798393770,0.063,185.86,185.85,28.82240693]
[1739798394182,0.063,185.91,185.86,13.41184853]
[1739798394397,0.063,185.91,185.89,10.0299584]
[1739798394593,0.063,185.91,185.9,13.41184853]
[1739798395399,0.063,185.91,185.87,10.0299584]
[1739798395803,0.063,185.91,185.88,13.41184853]
[1739798396010,0.063,185.91,185.9,10.0299584]
[1739798397681,0.063,185.91,185.9,23.44180693]
[1739798399004,0.063,185.91,185.9,13.41184853]
[1739798400006,0.063,185.91,185.9,23.44180693]
[1739798400385,0.063,185.91,185.9,13.41184853]
[1739798401905,0.063,185.91,185.9,23.44180693]
[1739798402713,0.063,185.91,185.9,104.94180693]
[1739798402901,0.063,185.91,185.9,94.91184853]
[1739798403591,0.063,185.91,185.9,104.94180693]
[1739798405107,0.063,185.91,185.9,110.32100693]
[1739798405285,0.063,185.91,185.9,185.11726987]
[1739798406010,0.063,185.95,185.91,13.41184853]
[1739798406213,0.063,185.95,185.94,23.44180693]
[1739798407883,0.063,185.95,185.94,110.31980693]
[1739798408597,0.063,185.95,185.94,185.11606987]
[1739798409391,0.063,185.95,185.94,225.23590347]
[1739798409591,0.063,185.99,185.96,1.0]
[1739798409894,0.063,185.99,185.98,10.0299584]
[1739798410106,0.063,185.99,185.98,179.73806987]
[1739798410411,0.063,185.99,185.98,180.73806987]
[1739798410590,0.063,185.99,185.98,186.33080148]
[1739798411089,0.063,185.99,185.98,185.33080148]
[1739798412397,0.063,185.99,185.98,29.03453854]
[1739798412596,0.063,185.99,185.98,13.41184853]
[1739798413294,0.063,185.99,185.98,29.03453854]
[1739798413909,0.063,185.99,185.98,109.20770148]
[1739798414419,0.063,185.99,185.98,103.83080148]
[1739798415499,0.063,185.99,185.98,88.20811147]
[1739798415710,0.063,185.99,185.98,103.83080148]
[1739798416212,0.063,185.99,185.98,109.20770148]
[1739798416612,0.063,186.03,185.99,13.41184853]
[1739798416817,0.063,186.03,186.01,15.62269001]
[1739798417132,0.063,186.03,186.01,103.83080148]
[1739798418716,0.063,186.03,186.01,109.20680148]
[1739798418907,0.063,186.03,186.01,103.83080148]
[1739798419423,0.063,186.03,186.01,109.20680148]
[1739798420420,0.063,186.03,186.01,190.70680148]
[1739798420619,0.063,186.03,186.01,185.33080148]
[1739798421222,0.063,186.03,186.01,169.70811147]
[1739798422019,0.063,186.03,186.01,13.41184853]
[1739798423429,0.063,186.03,186.01,190.70680148]
[1739798424726,0.063,186.03,186.01,185.33080148]
[1739798425328,0.063,186.03,186.01,169.70811147]
[1739798426326,0.063,186.03,186.01,185.33080148]
[1739798427210,0.063,186.03,186.01,190.70680148]
[1739798427409,0.063,186.03,186.01,185.33080148]
[1739798427628,0.063,186.03,186.01,169.70811147]
[1739798427832,0.063,186.03,186.01,185.33080148]
[1739798429225,0.063,186.03,186.01,115.91053854]
[1739798430318,0.063,186.03,186.01,190.70680148]
[1739798434740,0.063,186.03,186.01,185.08059168]
[1739798435227,0.063,186.03,186.01,226.06651252]
[1739798435741,0.063,186.03,186.01,186.08059168]
[1739798436741,0.063,186.04,186.01,212.65466399]
[1739798436925,0.063,186.06,186.05,1.0]
[1739798437131,0.063,186.06,186.05,171.66754315]
[1739798437325,0.063,186.06,186.05,185.07939168]
[1739798439437,0.063,186.08,186.06,13.41184853]
[1739798439638,0.063,186.08,186.07,24.21417348]
[1739798441132,0.063,186.08,186.07,180.51043642]
[1739798441333,0.063,186.08,186.07,185.07889168]
[1739798442220,0.063,186.08,186.07,179.70459168]
[1739798442620,0.063,186.08,186.07,169.70811147]
[1739798443128,0.063,186.08,186.07,185.07889168]
[1739798443531,0.063,186.08,186.07,179.70459168]
[1739798444236,0.063,186.08,186.07,169.70811147]
[1739798444545,0.063,186.08,186.07,23.40832874]
[1739798444744,0.063,186.08,186.07,28.78262874]
[1739798445242,0.063,186.08,186.07,185.88469346]
[1739798445549,0.063,186.08,186.07,185.07889168]
[1739798445952,0.063,186.08,186.07,179.70459168]
[1739798446126,0.063,186.08,186.07,169.70811147]
[1739798446741,0.063,186.08,186.07,179.70459168]
[1739798448144,0.063,186.08,186.07,185.07889168]
[1739798448748,0.063,186.08,186.07,110.28262874]
[1739798451230,0.063,186.08,186.07,185.07889168]
[1739798460747,0.063,186.08,186.07,169.70811147]
[1739798461748,10.05948021,186.08,186.07,13.41184853]
[1739798462055,10.05948021,186.08,186.06,0.063]
[1739798463134,9.99648021,186.07,186.06,0.063]
[1739798464759,15.37078021,186.07,186.06,0.063]
[1739798466368,23.05258021,186.07,186.06,0.063]
[1739798466556,5.3754,186.03,186.01,0.063]
[1739798466761,9.99648021,186.02,186.01,0.063]
[1739798470656,15.37218021,186.02,186.01,0.063]
[1739798471791,16.89938021,186.02,186.01,0.063]
[1739798473459,11.52368021,186.02,186.01,0.063]
[1739798474062,16.89938021,186.02,186.01,0.063]
[1739798477094,11.52368021,186.02,186.01,0.063]
[1739798477464,16.89938021,186.02,186.01,0.063]
[1739798478884,11.52368021,186.02,186.01,0.063]
[1739798480191,16.89938021,186.02,186.01,0.063]
[1739798480491,11.52368021,186.02,186.01,0.063]
[1739798480989,16.89938021,186.02,186.01,0.063]
[1739798484482,15.37218021,186.02,186.01,0.063]
[1739798485172,9.99648021,186.02,186.01,0.063]
[1739798485492,9.99648021,186.03,186.01,0.063]
[1739798485997,9.99648021,186.02,186.01,0.063]
[1739798486208,15.37218021,186.02,186.01,0.063]
[1739798488182,9.99648021,186.02,186.01,0.063]
[1739798491397,15.37218021,186.02,186.01,0.063]
[1739798492894,14.87218021,186.02,186.01,0.063]
[1739798499298,9.49648021,186.02,186.01,0.063]
[1739798499681,9.52648021,186.02,186.01,0.063]
[1739798501282,14.90218021,186.02,186.01,0.063]
[1739798508282,15.40218021,186.02,186.01,0.063]
[1739798508482,5.4057,186.02,186.01,0.063]
[1739798508688,15.40218021,186.02,186.01,0.063]
[1739798529635,10.02648021,186.02,186.01,0.063]
[1739798530514,0.03,186.02,186.01,0.063]
[1739798531922,10.02648021,186.02,186.01,0.063]
[1739798535415,0.03,186.02,186.01,0.063]
[1739798538124,0.03,186.02,186.01,23.47132874]
[1739798539112,0.03,186.02,186.01,28.84732874]
[1739798542218,0.03,186.02,186.01,110.34732874]
[1739798543154,0.03,186.02,186.01,185.14359168]
[1739798547823,0.03,186.02,186.01,186.70399168]
[1739798548023,0.0001,186.02,186.01,186.70399168]
[1739798548225,0.0001,186.02,186.01,187.70399168]
[1739798549420,0.0001,186.02,186.01,188.70399168]
[1739798549646,0.0001,186.02,186.01,228.68991252]
[1739798550259,0.03,186.06,186.04,33.41184853]
[1739798550451,0.03,186.06,186.05,24.21420845]
[1739798550652,0.03,186.06,186.05,180.51047139]
[1739798550835,0.03,186.06,186.05,179.70459168]
[1739798551723,0.03,186.06,186.05,185.07939168]
[1739798551928,0.03,186.06,186.05,175.08291147]
[1739798552331,0.03,186.06,186.05,185.07939168]
[1739798566864,0.03,186.06,186.05,175.08291147]
[1739798568465,0.03,186.06,186.05,185.07939168]
[1739798573042,0.0001,186.06,186.05,185.07939168]
[1739798573242,0.063,186.08,186.06,13.41184853]
[1739798573440,0.063,186.08,186.07,23.40832874]
[1739798573664,0.063,186.08,186.07,43.40832874]
[1739798573872,0.063,186.08,186.07,48.78262874]
[1739798577863,0.063,186.08,186.07,205.07889168]
[1739798581167,0.063,186.09,186.08,23.40832874]
[1739798581369,0.063,186.09,186.08,24.21407545]
[1739798581571,0.03,186.1,186.08,181.51033839]
[1739798581784,0.03,186.1,186.09,23.40832874]
[1739798581997,1.5739,186.2,186.13,20.0]
[1739798582156,1.5739,186.2,186.15,13.41184853]
[1739798582479,11.57038021,186.2,186.15,13.41184853]
[1739798583176,11.57038021,186.2,186.17,13.41184853]
[1739798583359,11.57038021,186.2,186.17,94.91184853]
[1739798584674,9.99648021,186.19,186.17,94.91184853]
[1739798585679,11.57038021,186.2,186.17,94.91184853]
[1739798586357,1.5739,186.2,186.17,94.91184853]
[1739798586558,0.03,186.21,186.17,100.28314853]
[1739798586969,10.02648021,186.21,186.17,94.91184853]
[1739798587489,9.99648021,186.2,186.17,94.91184853]
[1739798587676,9.99648021,186.18,186.17,94.91184853]
[1739798587885,9.99648021,186.18,186.13,5.3723]
[1739798587886,11.50838021,186.18,186.13,81.5]
[1739798588380,9.99648021,186.15,186.14,13.41184853]
[1739798589696,15.36848021,186.15,186.14,13.41184853]
[1739798589873,9.99648021,186.15,186.14,13.41184853]
[1739798592558,9.99648021,186.15,186.11,13.41184853]
[1739798592769,9.99648021,186.14,186.11,13.41184853]
[1739798595457,9.99648021,186.13,186.1,13.41184853]
[1739798595782,0.03,186.15,186.1,18.78524853]
[1739798595783,9.99648021,186.14,186.1,18.78524853]
[1739798598181,10.02648021,186.15,186.1,18.78524853]
[1739798598564,10.02648021,186.15,186.1,175.08151147]
[1739798600566,0.03,186.15,186.1,175.08151147]
[1739798601770,0.03,186.15,186.12,9.99648021]
[1739798601976,0.03,186.15,186.13,13.41184853]
[1739798602178,0.03,186.15,186.13,179.70459168]
[1739798602577,0.03,186.21,186.17,13.41184853]
[1739798602773,0.03,186.21,186.17,88.20811147]
[1739798603879,0.03,186.21,186.17,93.57931147]
[1739798604084,0.03,186.21,186.17,88.20811147]
[1739798604283,10.02648021,186.21,186.17,88.20811147]
[1739798605172,0.03,186.21,186.17,88.20811147]
[1739798605792,0.03,186.21,186.17,93.57941147]
[1739798606969,0.03,186.21,186.17,88.20811147]
[1739798607792,0.03,186.21,186.17,93.57941147]
[1739798609997,0.03,186.21,186.17,88.20811147]
[1739798610493,0.03,186.21,186.17,93.57951147]
[1739798610690,0.03,186.21,186.17,103.57599168]
[1739798611598,0.03,186.21,186.17,93.57951147]
[1739798611797,0.03,186.21,186.17,88.20811147]
[1739798611980,10.02648021,186.21,186.17,88.20811147]
[1739798612178,0.03,186.21,186.17,93.57951147]
[1739798612587,0.03,186.21,186.17,103.57599168]
[1739798613284,0.03,186.21,186.17,88.20811147]
[1739798613480,0.03,186.21,186.17,169.70811147]
[1739798614500,0.03,186.21,186.17,175.07951147]
[1739798614886,0.03,186.21,186.18,13.41184853]
[1739798615597,0.03,186.21,186.19,9.99648021]
[1739798615797,0.03,186.21,186.18,23.40832874]
[1739798615993,0.03,186.21,186.19,5.3708]
[1739798616293,0.03,186.21,186.2,13.41184853]
[1739798618100,0.03,186.21,186.2,18.78234853]
[1739798619095,0.03,186.21,186.2,28.77882874]
[1739798619298,0.03,186.21,186.2,18.78234853]
[1739798619492,0.03,186.21,186.2,175.07861147]
[1739798619880,0.03,186.21,186.2,185.07509168]
[1739798625700,0.03,186.21,186.2,175.07861147]
[1739798626001,0.03,186.21,186.2,185.07509168]
[1739798628001,0.03,186.21,186.2,175.07861147]
[1739798628390,0.03,186.21,186.2,169.70811147]
[1739798629004,0.03,186.21,186.2,94.91184853]
[1739798629192,10.02648021,186.21,186.2,94.91184853]
[1739798631709,10.02648021,186.21,186.17,74.79626294]
[1739798631710,15.39668021,186.21,186.17,74.79626294]
[1739798631911,9.99648021,186.19,186.18,13.41184853]
[1739798633217,9.99648021,186.2,186.18,13.41184853]
[1739798635806,9.99648021,186.19,186.18,13.41184853]
[1739798641022,15.36728021,186.19,186.18,13.41184853]
[1739798641321,9.99648021,186.19,186.18,13.41184853]
[1739798641515,15.36728021,186.19,186.18,13.41184853]
[1739798641706,9.99648021,186.19,186.18,13.41184853]
[1739798642124,15.36728021,186.19,186.18,13.41184853]
[1739798642319,9.99648021,186.19,186.18,13.41184853]
[1739798653127,15.36748021,186.19,186.15,0.063]
[1739798653331,9.99648021,186.16,186.15,0.063]
[1739798654818,15.36818021,186.16,186.15,0.063]
[1739798655537,9.99648021,186.16,186.15,0.063]
[1739798661418,15.36818021,186.16,186.15,0.063]
[1739798667551,15.39818021,186.16,186.15,0.063]
[1739798678153,68.81340105,186.16,186.1,0.063]
[1739798678368,9.99648021,186.11,186.1,0.063]
[1739798679356,12.10009964,186.11,186.09,0.063]
[1739798679535,20.0,186.08,186.01,0.063]
[1739798679736,9.99648021,186.03,186.01,0.063]
[1739798685353,9.99648021,186.04,186.01,0.063]
[1739798685551,9.99648021,186.07,186.01,13.47484853]
[1739798685752,9.99648021,186.07,186.01,88.27111147]
[1739798685938,9.99648021,186.06,186.01,88.27111147]
[1739798687266,9.99648021,186.06,186.03,13.41184853]
[1739798688769,9.99648021,186.07,186.03,5.3754]
[1739798690073,9.99648021,186.05,186.02,13.47484853]
[1739798690374,9.99648021,186.03,186.02,0.063]
[1739798690552,9.99648021,186.03,186.02,13.47484853]
[1739798691043,9.99648021,186.03,186.02,0.063]
[1739798692151,9.99648021,186.03,186.01,0.063]
[1739798692152,55.35780105,186.03,185.98,8.16285867]
[1739798692343,55.35780105,186.03,185.96,0.063]
[1739798692344,9.99648021,185.99,185.96,0.063]
[1739798692555,9.99648021,185.97,185.96,0.063]
[1739798694310,20.0,186.0,185.96,0.063]
[1739798694461,9.99648021,185.97,185.96,0.063]
[1739798701361,15.37368021,185.97,185.96,0.063]
[1739798714391,20.0,185.94,185.91,0.063]
[1739798714690,9.99648021,185.92,185.87,0.063]
[1739798714892,9.99648021,185.88,185.87,0.063]
[1739798716272,15.37628021,185.88,185.87,0.063]
[1739798716690,9.99648021,185.88,185.87,0.063]
[1739798717394,9.99648021,185.91,185.87,0.063]
[1739798717599,9.99648021,185.92,185.87,0.063]
[1739798717900,9.99648021,185.92,185.87,13.47484853]
[1739798718085,15.37518021,185.92,185.87,13.47484853]
[1739798718284,9.99648021,185.91,185.87,13.47484853]
[1739798718484,9.99648021,185.9,185.87,13.47484853]
[1739798718682,9.99648021,185.91,185.87,13.47484853]
[1739798719598,9.99648021,185.91,185.87,0.063]
[1739798719895,9.99648021,185.9,185.87,0.063]
[1739798721200,9.99648021,185.91,185.87,0.063]
[1739798721802,15.37548021,185.91,185.87,0.063]
[1739798722298,5.379,185.91,185.87,0.063]
[1739798722489,15.37548021,185.91,185.87,0.063]
[1739798722679,9.99648021,185.9,185.87,0.063]
[1739798722870,15.37568021,185.9,185.87,0.063]